[Event "Titled Tuesday Blitz June 6 Late 2023"]
[White "Marin Masis, Jose Esteban"]
[Black "Mazurkiewicz, Michal"]
[WhiteFideId "6508146"]
[BlackFideId "1124943"]
[WhiteElo "1838"]
[BlackElo "2063"]
[Result "0-1"]
[Round "4"]
[TimeControl "180+2"]
[Date "2023.06.07"]
[WhiteClock "0:00:02"]
[BlackClock "0:01:24"]
[Board "164"]

1. e4 {[%clk 0:03:00]}  d6 {[%clk 0:02:59]} 2. d4 {[%clk 0:02:59]}  Nf6 {[%clk 0:02:59]} 3. Nc3 {[%clk 0:02:58]}  c6 {[%clk 0:03:00]} 4. Nf3 {[%clk 0:02:58]}  Bg4 {[%clk 0:02:59]} 5. Be2 {[%clk 0:02:57]}  e6 {[%clk 0:02:59]} 6. Bg5 {[%clk 0:02:56]}  Be7 {[%clk 0:02:59]} 7. Qd2 {[%clk 0:02:55]}  d5 {[%clk 0:02:59]} 8. e5 {[%clk 0:02:54]}  Nfd7 {[%clk 0:02:59]} 9. Bxe7 {[%clk 0:02:53]}  Qxe7 {[%clk 0:03:00]} 10. h3 {[%clk 0:02:53]}  Bh5 {[%clk 0:03:00]} 11. Qg5 {[%clk 0:02:33]}  Bxf3 {[%clk 0:02:54]} 12. Qxe7+ {[%clk 0:02:32]}  Kxe7 {[%clk 0:02:55]} 13. Bxf3 {[%clk 0:02:25]}  c5 {[%clk 0:02:53]} 14. Bxd5 {[%clk 0:01:59]}  exd5 {[%clk 0:02:51]} 15. Nxd5+ {[%clk 0:01:59]}  Kd8 {[%clk 0:02:51]} 16. dxc5 {[%clk 0:01:55]}  Nc6 {[%clk 0:02:46]} 17. O-O-O {[%clk 0:01:47]}  Ncxe5 {[%clk 0:02:34]} 18. f4 {[%clk 0:01:41]}  Nc6 {[%clk 0:02:26]} 19. Rhe1 {[%clk 0:01:40]}  Rc8 {[%clk 0:02:24]} 20. Re3 {[%clk 0:01:29]}  Re8 {[%clk 0:02:24]} 21. Red3 {[%clk 0:01:25]}  Ncb8 {[%clk 0:02:22]} 22. b4 {[%clk 0:01:11]}  Re2 {[%clk 0:02:21]} 23. g4 {[%clk 0:01:04]}  b6 {[%clk 0:02:13]} 24. Nc3 {[%clk 0:00:40]}  Rf2 {[%clk 0:01:55]} 25. Ne4 {[%clk 0:00:37]}  Rxf4 {[%clk 0:01:54]} 26. Nd6 {[%clk 0:00:31]}  Rc6 {[%clk 0:01:49]} 27. b5 {[%clk 0:00:25]}  Rxc5 {[%clk 0:01:46]} 28. Nb7+ {[%clk 0:00:25]}  Kc7 {[%clk 0:01:47]} 29. Nxc5 {[%clk 0:00:23]}  Nxc5 {[%clk 0:01:47]} 30. Re3 {[%clk 0:00:16]}  Nbd7 {[%clk 0:01:36]} 31. Re7 {[%clk 0:00:13]}  Kd8 {[%clk 0:01:37]} 32. Rde1 {[%clk 0:00:12]}  Ne6 {[%clk 0:01:36]} 33. R1xe6 {[%clk 0:00:09]}  fxe6 {[%clk 0:01:37]} 34. Rxg7 {[%clk 0:00:09]}  h5 {[%clk 0:01:25]} 35. gxh5 {[%clk 0:00:09]}  Rh4 {[%clk 0:01:25]} 36. Rg3 {[%clk 0:00:01]}  Rxh5 {[%clk 0:01:25]} 37. Kb2 {[%clk 0:00:02]}  Rxb5+ {[%clk 0:01:24]} 38. Kc1 {[%clk 0:00:02]} 0-1


[Site "https://www.chess.com"]

[Event "Titled Tuesday Blitz June 6 Late 2023"]
[White "Winkels, Marcel"]
[Black "Manon-og, Ramon Jr."]
[WhiteFideId "1003887"]
[BlackFideId "5200776"]
[WhiteElo "1900"]
[BlackElo "2351"]
[Result "1-0"]
[Round "4"]
[TimeControl "180+2"]
[Date "2023.06.07"]
[WhiteClock "0:00:58"]
[BlackClock "0:00:01"]
[Board "167"]

1. d4 {[%clk 0:03:00]}  d5 {[%clk 0:02:58]} 2. Nc3 {[%clk 0:03:00]}  Nf6 {[%clk 0:02:55]} 3. Bf4 {[%clk 0:03:00]}  Bf5 {[%clk 0:02:43]} 4. e3 {[%clk 0:02:57]}  e6 {[%clk 0:02:36]} 5. Nf3 {[%clk 0:02:57]}  Nbd7 {[%clk 0:02:31]} 6. Ne5 {[%clk 0:02:57]}  Nxe5 {[%clk 0:02:24]} 7. dxe5 {[%clk 0:02:55]}  Ne4 {[%clk 0:02:21]} 8. Nxe4 {[%clk 0:02:43]}  Bxe4 {[%clk 0:02:19]} 9. f3 {[%clk 0:02:41]}  Bg6 {[%clk 0:02:17]} 10. Bd3 {[%clk 0:02:41]}  Bc5 {[%clk 0:02:09]} 11. c3 {[%clk 0:02:34]}  Qh4+ {[%clk 0:01:37]} 12. Bg3 {[%clk 0:02:33]}  Qg5 {[%clk 0:01:36]} 13. f4 {[%clk 0:02:20]}  Qh5 {[%clk 0:01:29]} 14. Qxh5 {[%clk 0:02:11]}  Bxh5 {[%clk 0:01:29]} 15. Kd2 {[%clk 0:02:01]}  O-O-O {[%clk 0:01:25]} 16. a4 {[%clk 0:01:58]}  a5 {[%clk 0:01:23]} 17. Rhb1 {[%clk 0:01:52]}  f6 {[%clk 0:01:05]} 18. exf6 {[%clk 0:01:49]}  gxf6 {[%clk 0:01:04]} 19. Bh4 {[%clk 0:01:49]}  Rdf8 {[%clk 0:01:00]} 20. b4 {[%clk 0:01:48]}  axb4 {[%clk 0:00:59]} 21. c4 {[%clk 0:01:48]}  dxc4 {[%clk 0:00:53]} 22. Bxc4 {[%clk 0:01:46]}  Rd8+ {[%clk 0:00:41]} 23. Kc2 {[%clk 0:01:42]}  Bg6+ {[%clk 0:00:40]} 24. Kb3 {[%clk 0:01:29]}  Bxb1 {[%clk 0:00:38]} 25. Bxf6 {[%clk 0:01:20]}  Rhe8 {[%clk 0:00:24]} 26. Bxd8 {[%clk 0:01:18]}  Kxd8 {[%clk 0:00:24]} 27. Rxb1 {[%clk 0:01:15]}  Bxe3 {[%clk 0:00:24]} 28. g3 {[%clk 0:01:11]}  e5 {[%clk 0:00:20]} 29. f5 {[%clk 0:01:08]}  Rf8 {[%clk 0:00:17]} 30. Re1 {[%clk 0:01:06]}  Bd4 {[%clk 0:00:16]} 31. Be6 {[%clk 0:01:04]}  Ke7 {[%clk 0:00:14]} 32. g4 {[%clk 0:01:04]}  c5 {[%clk 0:00:12]} 33. h4 {[%clk 0:01:03]}  b6 {[%clk 0:00:12]} 34. g5 {[%clk 0:01:02]}  Bf2 {[%clk 0:00:07]} 35. Re4 {[%clk 0:01:00]}  Bg3 {[%clk 0:00:06]} 36. h5 {[%clk 0:00:59]}  Bf4 {[%clk 0:00:04]} 37. g6 {[%clk 0:00:59]}  hxg6 {[%clk 0:00:04]} 38. hxg6 {[%clk 0:00:59]}  Bh6 {[%clk 0:00:01]} 39. Rh4 {[%clk 0:00:58]} 1-0


[Site "https://www.chess.com"]

[Event "Titled Tuesday Blitz June 6 Late 2023"]
[White "Hartikainen, Jarmo"]
[Black "Celestino, Rafael Teixeira"]
[WhiteFideId "503134"]
[BlackFideId "2108925"]
[WhiteElo "2114"]
[BlackElo "2304"]
[Result "0-1"]
[Round "4"]
[TimeControl "180+2"]
[Date "2023.06.07"]
[WhiteClock "0:00:03"]
[BlackClock "0:01:46"]
[Board "169"]

1. e4 {[%clk 0:03:00]}  e5 {[%clk 0:03:00]} 2. Nf3 {[%clk 0:03:00]}  Nc6 {[%clk 0:03:00]} 3. Bc4 {[%clk 0:02:59]}  Bc5 {[%clk 0:03:01]} 4. c3 {[%clk 0:02:59]}  Nf6 {[%clk 0:03:00]} 5. d4 {[%clk 0:02:58]}  exd4 {[%clk 0:03:01]} 6. b4 {[%clk 0:02:58]}  Bb6 {[%clk 0:02:55]} 7. e5 {[%clk 0:02:57]}  d5 {[%clk 0:02:55]} 8. exf6 {[%clk 0:02:56]}  dxc4 {[%clk 0:02:55]} 9. Qe2+ {[%clk 0:02:56]}  Be6 {[%clk 0:02:51]} 10. b5 {[%clk 0:02:55]}  d3 {[%clk 0:02:44]} 11. Qe4 {[%clk 0:02:54]}  Nb8 {[%clk 0:02:36]} 12. fxg7 {[%clk 0:02:52]}  Rg8 {[%clk 0:02:36]} 13. Bg5 {[%clk 0:02:24]}  Qd5 {[%clk 0:02:19]} 14. Qxh7 {[%clk 0:02:13]}  f6 {[%clk 0:02:19]} 15. Qg6+ {[%clk 0:01:49]}  Bf7 {[%clk 0:02:14]} 16. Qxf6 {[%clk 0:01:46]}  Qe4+ {[%clk 0:02:13]} 17. Be3 {[%clk 0:00:52]}  Bxe3 {[%clk 0:02:12]} 18. Qe5+ {[%clk 0:00:30]}  Qxe5 {[%clk 0:02:12]} 19. Nxe5 {[%clk 0:00:31]}  Bf4 {[%clk 0:02:09]} 20. Ng4 {[%clk 0:00:09]}  Rxg7 {[%clk 0:02:06]} 21. h3 {[%clk 0:00:06]}  Be6 {[%clk 0:02:05]} 22. Nf6+ {[%clk 0:00:04]}  Ke7 {[%clk 0:02:05]} 23. Ne4 {[%clk 0:00:03]}  Rxg2 {[%clk 0:02:01]} 24. Nbd2 {[%clk 0:00:03]}  Bd5 {[%clk 0:01:58]} 25. O-O-O {[%clk 0:00:03]}  Nd7 {[%clk 0:01:47]} 26. Rhe1 {[%clk 0:00:03]}  Kf7 {[%clk 0:01:47]} 27. h4 {[%clk 0:00:03]}  Re8 {[%clk 0:01:46]} 28. h5 {[%clk 0:00:03]}  Bxe4 {[%clk 0:01:46]} 0-1


[Site "https://www.chess.com"]

[Event "Titled Tuesday Blitz June 6 Late 2023"]
[White "NtcPou"]
[Black "Sarkar, Justin"]
[BlackFideId "2010011"]
[WhiteElo "2051"]
[BlackElo "2151"]
[Result "0-1"]
[Round "4"]
[TimeControl "180+2"]
[Date "2023.06.07"]
[WhiteClock "0:00:24"]
[BlackClock "0:00:39"]
[Board "170"]

1. e4 {[%clk 0:03:00]}  e5 {[%clk 0:02:57]} 2. Nf3 {[%clk 0:03:00]}  Nc6 {[%clk 0:02:56]} 3. Bc4 {[%clk 0:03:00]}  d6 {[%clk 0:02:55]} 4. O-O {[%clk 0:02:57]}  Be7 {[%clk 0:02:49]} 5. d3 {[%clk 0:02:56]}  Na5 {[%clk 0:02:49]} 6. Bb3 {[%clk 0:02:42]}  Nxb3 {[%clk 0:02:48]} 7. axb3 {[%clk 0:02:42]}  f5 {[%clk 0:02:46]} 8. Be3 {[%clk 0:02:40]}  f4 {[%clk 0:02:44]} 9. Bd2 {[%clk 0:02:39]}  Nf6 {[%clk 0:02:42]} 10. Nc3 {[%clk 0:02:38]}  c5 {[%clk 0:02:37]} 11. Nd5 {[%clk 0:02:33]}  Nxd5 {[%clk 0:02:35]} 12. exd5 {[%clk 0:02:33]}  g5 {[%clk 0:02:31]} 13. Ne1 {[%clk 0:02:22]}  g4 {[%clk 0:02:26]} 14. b4 {[%clk 0:02:21]}  cxb4 {[%clk 0:02:11]} 15. Bxb4 {[%clk 0:02:21]}  Bf5 {[%clk 0:02:09]} 16. d4 {[%clk 0:02:17]}  e4 {[%clk 0:02:01]} 17. c4 {[%clk 0:02:15]}  O-O {[%clk 0:01:33]} 18. c5 {[%clk 0:02:03]}  h5 {[%clk 0:01:24]} 19. Qb3 {[%clk 0:01:57]}  Rf7 {[%clk 0:01:13]} 20. Ba5 {[%clk 0:01:57]}  Qc8 {[%clk 0:01:07]} 21. Rc1 {[%clk 0:01:49]}  b6 {[%clk 0:01:03]} 22. Bb4 {[%clk 0:01:30]}  a5 {[%clk 0:01:01]} 23. Ba3 {[%clk 0:01:27]}  bxc5 {[%clk 0:01:00]} 24. dxc5 {[%clk 0:01:26]}  dxc5 {[%clk 0:00:57]} 25. Qc4 {[%clk 0:00:56]}  Bd6 {[%clk 0:00:56]} 26. Bxc5 {[%clk 0:00:54]}  Rc7 {[%clk 0:00:51]} 27. Qd4 {[%clk 0:00:25]}  Bxc5 {[%clk 0:00:50]} 28. Qe5 {[%clk 0:00:25]}  Bd6 {[%clk 0:00:40]} 29. Rxc7 {[%clk 0:00:24]}  Bxe5 {[%clk 0:00:39]} 30. Rxc8+ {[%clk 0:00:24]}  Rxc8 {[%clk 0:00:39]} 0-1


[Site "https://www.chess.com"]

[Event "Titled Tuesday Blitz June 6 Late 2023"]
[White "Sarana, Alexey"]
[Black "Kamsky, Gata"]
[WhiteFideId "24133795"]
[BlackFideId "2000024"]
[WhiteElo "2714"]
[BlackElo "2660"]
[Result "1-0"]
[Round "5"]
[TimeControl "180+2"]
[Date "2023.06.07"]
[WhiteClock "0:00:22"]
[BlackClock "0:00:09"]
[Board "1"]

1. c4 {[%clk 0:03:00]}  e5 {[%clk 0:02:58]} 2. Nf3 {[%clk 0:03:01]}  Nc6 {[%clk 0:02:56]} 3. Nc3 {[%clk 0:03:02]}  Nf6 {[%clk 0:02:53]} 4. g3 {[%clk 0:03:01]}  d5 {[%clk 0:02:45]} 5. cxd5 {[%clk 0:03:02]}  Nxd5 {[%clk 0:02:45]} 6. Bg2 {[%clk 0:03:02]}  Nb6 {[%clk 0:02:45]} 7. O-O {[%clk 0:03:02]}  Be7 {[%clk 0:02:44]} 8. d3 {[%clk 0:03:01]}  O-O {[%clk 0:02:44]} 9. a3 {[%clk 0:03:01]}  a5 {[%clk 0:02:43]} 10. Be3 {[%clk 0:03:02]}  Be6 {[%clk 0:02:38]} 11. Rc1 {[%clk 0:03:02]}  f6 {[%clk 0:02:36]} 12. Na4 {[%clk 0:03:03]}  Nd5 {[%clk 0:02:27]} 13. Bc5 {[%clk 0:03:02]}  Bd6 {[%clk 0:02:21]} 14. e4 {[%clk 0:02:51]}  Nb6 {[%clk 0:02:13]} 15. Nxb6 {[%clk 0:02:45]}  cxb6 {[%clk 0:02:13]} 16. Be3 {[%clk 0:02:45]}  b5 {[%clk 0:02:01]} 17. d4 {[%clk 0:02:42]}  exd4 {[%clk 0:01:58]} 18. Nxd4 {[%clk 0:02:43]}  Nxd4 {[%clk 0:01:57]} 19. Bxd4 {[%clk 0:02:43]}  b4 {[%clk 0:01:55]} 20. axb4 {[%clk 0:02:27]}  Bxb4 {[%clk 0:01:48]} 21. e5 {[%clk 0:02:27]}  fxe5 {[%clk 0:01:47]} 22. Bxe5 {[%clk 0:02:28]}  Qxd1 {[%clk 0:01:38]} 23. Rfxd1 {[%clk 0:02:29]}  Rf7 {[%clk 0:01:35]} 24. Bd5 {[%clk 0:02:25]}  Bxd5 {[%clk 0:01:27]} 25. Rxd5 {[%clk 0:02:26]}  a4 {[%clk 0:01:23]} 26. Rb5 {[%clk 0:02:26]}  Bf8 {[%clk 0:01:23]} 27. Rc7 {[%clk 0:02:22]}  Rxc7 {[%clk 0:01:20]} 28. Bxc7 {[%clk 0:02:23]}  a3 {[%clk 0:01:13]} 29. bxa3 {[%clk 0:02:24]}  Rxa3 {[%clk 0:01:10]} 30. Rxb7 {[%clk 0:02:24]}  Ra8 {[%clk 0:01:04]} 31. Be5 {[%clk 0:02:22]}  Re8 {[%clk 0:01:04]} 32. f4 {[%clk 0:02:22]}  Bc5+ {[%clk 0:01:00]} 33. Kg2 {[%clk 0:02:22]}  Re7 {[%clk 0:01:00]} 34. Rb5 {[%clk 0:02:22]}  Ba7 {[%clk 0:00:58]} 35. g4 {[%clk 0:02:20]}  Kf7 {[%clk 0:00:55]} 36. h4 {[%clk 0:02:20]}  g6 {[%clk 0:00:52]} 37. Kf3 {[%clk 0:02:20]}  Rd7 {[%clk 0:00:51]} 38. Ke4 {[%clk 0:02:20]}  Bf2 {[%clk 0:00:50]} 39. h5 {[%clk 0:02:06]}  gxh5 {[%clk 0:00:49]} 40. gxh5 {[%clk 0:02:06]}  Bh4 {[%clk 0:00:48]} 41. Rb6 {[%clk 0:02:05]}  Be7 {[%clk 0:00:44]} 42. Rh6 {[%clk 0:02:04]}  Kg8 {[%clk 0:00:44]} 43. Kf5 {[%clk 0:02:03]}  Rb7 {[%clk 0:00:39]} 44. Ra6 {[%clk 0:02:02]}  Kf7 {[%clk 0:00:38]} 45. Rc6 {[%clk 0:01:58]}  Ra7 {[%clk 0:00:37]} 46. Rb6 {[%clk 0:01:57]}  Rd7 {[%clk 0:00:36]} 47. Ra6 {[%clk 0:01:57]}  Rb7 {[%clk 0:00:37]} 48. Ra8 {[%clk 0:01:37]}  Bf8 {[%clk 0:00:36]} 49. Rc8 {[%clk 0:01:34]}  Ra7 {[%clk 0:00:35]} 50. Rc6 {[%clk 0:01:33]}  Be7 {[%clk 0:00:34]} 51. Rh6 {[%clk 0:01:33]}  Kg8 {[%clk 0:00:34]} 52. Rb6 {[%clk 0:01:29]}  Kf7 {[%clk 0:00:34]} 53. Rb5 {[%clk 0:01:26]}  Rd7 {[%clk 0:00:33]} 54. Ke4 {[%clk 0:01:26]}  Ra7 {[%clk 0:00:32]} 55. f5 {[%clk 0:01:25]}  Ra4+ {[%clk 0:00:31]} 56. Kd5 {[%clk 0:01:25]}  Ra7 {[%clk 0:00:31]} 57. Bd4 {[%clk 0:01:20]}  Rd7+ {[%clk 0:00:30]} 58. Ke4 {[%clk 0:01:20]}  Rc7 {[%clk 0:00:30]} 59. Rb6 {[%clk 0:01:09]}  Bf8 {[%clk 0:00:27]} 60. Rf6+ {[%clk 0:01:08]}  Ke8 {[%clk 0:00:26]} 61. Be5 {[%clk 0:01:01]}  Rb7 {[%clk 0:00:24]} 62. Ra6 {[%clk 0:01:00]}  Kf7 {[%clk 0:00:24]} 63. f6 {[%clk 0:00:58]}  Rb1 {[%clk 0:00:21]} 64. Ra7+ {[%clk 0:00:52]}  Ke6 {[%clk 0:00:21]} 65. Bc3 {[%clk 0:00:53]}  Rc1 {[%clk 0:00:18]} 66. Ra6+ {[%clk 0:00:50]}  Kf7 {[%clk 0:00:17]} 67. Bd4 {[%clk 0:00:50]}  Rc7 {[%clk 0:00:16]} 68. Be5 {[%clk 0:00:49]}  Rb7 {[%clk 0:00:17]} 69. Kf5 {[%clk 0:00:48]}  Rd7 {[%clk 0:00:17]} 70. Rb6 {[%clk 0:00:42]}  Ra7 {[%clk 0:00:17]} 71. Rb5 {[%clk 0:00:42]}  Rd7 {[%clk 0:00:17]} 72. Bb8 {[%clk 0:00:42]}  Bh6 {[%clk 0:00:16]} 73. Be5 {[%clk 0:00:38]}  Bf8 {[%clk 0:00:16]} 74. Rb8 {[%clk 0:00:39]}  Ra7 {[%clk 0:00:15]} 75. Rc8 {[%clk 0:00:39]}  Rb7 {[%clk 0:00:15]} 76. Ke4 {[%clk 0:00:37]}  Ra7 {[%clk 0:00:15]} 77. Bd4 {[%clk 0:00:38]}  Rb7 {[%clk 0:00:15]} 78. Rc6 {[%clk 0:00:34]}  Rd7 {[%clk 0:00:15]} 79. Be5 {[%clk 0:00:34]}  Bh6 {[%clk 0:00:14]} 80. Bd6 {[%clk 0:00:31]}  Bg5 {[%clk 0:00:12]} 81. Be7 {[%clk 0:00:25]}  Ra7 {[%clk 0:00:11]} 82. Kf5 {[%clk 0:00:21]}  Ra5+ {[%clk 0:00:10]} 83. Bc5 {[%clk 0:00:22]}  Be3 {[%clk 0:00:09]} 84. Rc7+ {[%clk 0:00:22]} 1-0


[Site "https://www.chess.com"]

[Event "Titled Tuesday Blitz June 6 Late 2023"]
[White "Sjugirov, Sanan"]
[Black "Deac, Bogdan-Daniel"]
[WhiteFideId "4189302"]
[BlackFideId "1226380"]
[WhiteElo "2569"]
[BlackElo "2644"]
[Result "0-1"]
[Round "5"]
[TimeControl "180+2"]
[Date "2023.06.07"]
[WhiteClock "0:00:03"]
[BlackClock "0:00:02"]
[Board "3"]

1. e4 {[%clk 0:03:00]}  e5 {[%clk 0:03:00]} 2. Nf3 {[%clk 0:03:01]}  Nf6 {[%clk 0:03:00]} 3. Nxe5 {[%clk 0:02:58]}  d6 {[%clk 0:03:01]} 4. Nf3 {[%clk 0:02:58]}  Nxe4 {[%clk 0:03:01]} 5. d4 {[%clk 0:02:57]}  d5 {[%clk 0:03:01]} 6. Bd3 {[%clk 0:02:57]}  Bd6 {[%clk 0:03:01]} 7. O-O {[%clk 0:02:54]}  O-O {[%clk 0:03:01]} 8. c4 {[%clk 0:02:53]}  c6 {[%clk 0:03:02]} 9. Nc3 {[%clk 0:02:53]}  Nxc3 {[%clk 0:03:02]} 10. bxc3 {[%clk 0:02:54]}  dxc4 {[%clk 0:03:02]} 11. Bxc4 {[%clk 0:02:55]}  Bg4 {[%clk 0:03:02]} 12. h3 {[%clk 0:02:46]}  Bh5 {[%clk 0:03:02]} 13. g4 {[%clk 0:02:33]}  Bg6 {[%clk 0:03:02]} 14. Bg5 {[%clk 0:02:27]}  Qc7 {[%clk 0:02:56]} 15. Re1 {[%clk 0:02:23]}  b5 {[%clk 0:02:49]} 16. Bb3 {[%clk 0:02:22]}  Nd7 {[%clk 0:02:35]} 17. Nh4 {[%clk 0:02:09]}  Nb6 {[%clk 0:01:44]} 18. Nxg6 {[%clk 0:02:04]}  hxg6 {[%clk 0:01:45]} 19. Qf3 {[%clk 0:01:59]}  a5 {[%clk 0:01:42]} 20. h4 {[%clk 0:01:40]}  a4 {[%clk 0:01:38]} 21. Bc2 {[%clk 0:01:40]}  Nd5 {[%clk 0:01:38]} 22. Be4 {[%clk 0:01:35]}  Rae8 {[%clk 0:00:40]} 23. h5 {[%clk 0:01:09]}  gxh5 {[%clk 0:00:22]} 24. gxh5 {[%clk 0:01:10]}  Re6 {[%clk 0:00:22]} 25. Bf5 {[%clk 0:00:29]}  Rxe1+ {[%clk 0:00:21]} 26. Rxe1 {[%clk 0:00:30]}  Bf4 {[%clk 0:00:21]} 27. Bh4 {[%clk 0:00:26]}  Bd2 {[%clk 0:00:19]} 28. Re5 {[%clk 0:00:16]}  Bf4 {[%clk 0:00:14]} 29. Re4 {[%clk 0:00:13]}  Qd6 {[%clk 0:00:12]} 30. Qg4 {[%clk 0:00:05]}  Bh6 {[%clk 0:00:08]} 31. Bg3 {[%clk 0:00:03]}  Qd8 {[%clk 0:00:07]} 32. Re1 {[%clk 0:00:02]}  Nxc3 {[%clk 0:00:04]} 33. Bc2 {[%clk 0:00:02]}  f5 {[%clk 0:00:03]} 34. Qg6 {[%clk 0:00:02]}  Nd5 {[%clk 0:00:03]} 35. Bxf5 {[%clk 0:00:01]}  Nf6 {[%clk 0:00:04]} 36. Be6+ {[%clk 0:00:02]}  Kh8 {[%clk 0:00:04]} 37. Be5 {[%clk 0:00:03]}  Qe8 {[%clk 0:00:04]} 38. Bf5 {[%clk 0:00:03]}  Qxg6+ {[%clk 0:00:04]} 39. hxg6 {[%clk 0:00:04]}  Nd5 {[%clk 0:00:03]} 40. Be4 {[%clk 0:00:04]}  b4 {[%clk 0:00:03]} 41. Rb1 {[%clk 0:00:04]}  Nc3 {[%clk 0:00:02]} 42. Re1 {[%clk 0:00:03]}  Nxe4 {[%clk 0:00:02]} 43. Rxe4 {[%clk 0:00:04]}  b3 {[%clk 0:00:03]} 44. axb3 {[%clk 0:00:05]}  axb3 {[%clk 0:00:03]} 45. Re2 {[%clk 0:00:05]}  Bc1 {[%clk 0:00:02]} 46. d5 {[%clk 0:00:03]}  cxd5 {[%clk 0:00:03]} 47. Bd4 {[%clk 0:00:02]}  Kg8 {[%clk 0:00:02]} 48. Re1 {[%clk 0:00:01]}  b2 {[%clk 0:00:02]} 49. Bxb2 {[%clk 0:00:01]}  Bxb2 {[%clk 0:00:02]} 50. Rd1 {[%clk 0:00:02]}  d4 {[%clk 0:00:02]} 51. Kg2 {[%clk 0:00:03]}  Bc3 {[%clk 0:00:02]} 0-1


[Site "https://www.chess.com"]

[Event "Titled Tuesday Blitz June 6 Late 2023"]
[White "Duda, Jan-Krzysztof"]
[Black "Li, Ruifeng"]
[WhiteFideId "1170546"]
[BlackFideId "2061074"]
[WhiteElo "2783"]
[BlackElo "2441"]
[Result "1-0"]
[Round "5"]
[TimeControl "180+2"]
[Date "2023.06.07"]
[WhiteClock "0:00:18"]
[BlackClock "0:00:23"]
[Board "10"]

1. b4 {[%clk 0:03:00]}  b6 {[%clk 0:02:58]} 2. Bb2 {[%clk 0:03:00]}  Bb7 {[%clk 0:02:59]} 3. Nf3 {[%clk 0:02:59]}  e6 {[%clk 0:02:59]} 4. a3 {[%clk 0:02:58]}  Nf6 {[%clk 0:02:59]} 5. e3 {[%clk 0:02:58]}  c5 {[%clk 0:02:59]} 6. b5 {[%clk 0:02:57]}  Be7 {[%clk 0:02:56]} 7. c4 {[%clk 0:02:56]}  d5 {[%clk 0:02:54]} 8. a4 {[%clk 0:02:44]}  O-O {[%clk 0:02:44]} 9. Be2 {[%clk 0:02:41]}  Nbd7 {[%clk 0:02:42]} 10. O-O {[%clk 0:02:40]}  dxc4 {[%clk 0:02:38]} 11. Na3 {[%clk 0:02:38]}  Nd5 {[%clk 0:02:32]} 12. Nxc4 {[%clk 0:02:36]}  Bf6 {[%clk 0:02:32]} 13. Qc1 {[%clk 0:02:28]}  Qc7 {[%clk 0:02:30]} 14. Rd1 {[%clk 0:02:26]}  Rac8 {[%clk 0:02:28]} 15. a5 {[%clk 0:02:21]}  Rfd8 {[%clk 0:02:27]} 16. a6 {[%clk 0:02:14]}  Ba8 {[%clk 0:02:27]} 17. d3 {[%clk 0:02:14]}  Nb4 {[%clk 0:02:21]} 18. e4 {[%clk 0:02:11]}  Bxb2 {[%clk 0:02:11]} 19. Qxb2 {[%clk 0:02:12]}  Nf6 {[%clk 0:02:12]} 20. Nfe5 {[%clk 0:02:11]}  Ne8 {[%clk 0:01:46]} 21. Bh5 {[%clk 0:02:01]}  g6 {[%clk 0:01:44]} 22. Be2 {[%clk 0:01:46]}  f6 {[%clk 0:01:40]} 23. Ng4 {[%clk 0:01:45]}  e5 {[%clk 0:01:39]} 24. f4 {[%clk 0:01:39]}  h5 {[%clk 0:01:31]} 25. fxe5 {[%clk 0:01:24]}  hxg4 {[%clk 0:01:27]} 26. exf6 {[%clk 0:01:25]}  Rd4 {[%clk 0:01:23]} 27. Bxg4 {[%clk 0:01:19]}  Rcd8 {[%clk 0:01:15]} 28. Be6+ {[%clk 0:01:18]}  Kf8 {[%clk 0:01:15]} 29. Qf2 {[%clk 0:01:11]}  Qh7 {[%clk 0:01:11]} 30. Ne5 {[%clk 0:00:40]}  Nc7 {[%clk 0:01:06]} 31. Qh4 {[%clk 0:00:38]}  R8d7 {[%clk 0:00:35]} 32. Nxg6+ {[%clk 0:00:17]}  Ke8 {[%clk 0:00:31]} 33. f7+ {[%clk 0:00:17]}  Rxf7 {[%clk 0:00:28]} 34. Bxf7+ {[%clk 0:00:18]}  Qxf7 {[%clk 0:00:26]} 35. Qh8+ {[%clk 0:00:18]}  Kd7 {[%clk 0:00:23]} 36. Ne5+ {[%clk 0:00:18]} 1-0


[Site "https://www.chess.com"]